[Event "EYCC Open-U14 2019"]
[Site "Bratislava"]
[Date "2019.08.04"]
[Round "3.2"]
[White "Can, Isik"]
[Black "Dzida, Kamil"]
[Result "1-0"]
[ECO "B99"]
[WhiteElo "2374"]
[BlackElo "1987"]
[Annotator "NA"]
[PlyCount "75"]
[EventDate "2019.08.02"]
[EventType "swiss"]
[EventCountry "SVK"]
[SourceTitle "playchess.com"]
[Source "ChessBase"]
[SourceQuality "1"]
[TimeControl "40/5400+30:1800+30"]

1. e4 {[%emt 0:00:00]} c5 {[%emt 0:00:00]} 2. Nf3 {[%emt 0:00:00]} d6 {[%emt 0:00:00]} 3. d4 {[%emt 0:00:00]} cxd4 {[%emt 0:00:00]} 4. Nxd4 {[%emt 0:00:00]} Nf6 {[%emt 0:00:06]} 5. Nc3 {[%emt 0:00:00]} a6 {[%emt 0:00:11]} 6. Bg5 {[%emt 0:00:00]} e6 {[%emt 0:00:08]} 7. f4 {[%emt 0:00:00]} Be7 {[%emt 0:00:05]} 8. Qf3 {[%emt 0:00:00]} Qc7 {[%emt 0:00:16]} 9. O-O-O {[%emt 0:00:12]} Nbd7 {[%emt 0:00:05]} 10. g4 {[%emt 0:00:04]} Rb8 {[%emt 0:00:06]} 11. Bxf6 {[%emt 0:07:36]} Bxf6 {[%emt 0:00:21]} 12. g5 {[%emt 0:01:04]} Bxd4 {[%emt 0:00:05]} 13. Rxd4 {[%emt 0:00:04]} b5 {[%emt 0:00:06]} 14. a3 {[%emt 0:04:09]} Qc5 {[%emt 0:00:05]} 15. Qd3 {[%emt 0:15:04]} b4 {[%emt 0:00:05]} 16. axb4 {[%emt 0:04:08]} Rxb4 {[%emt 0:00:06]} 17. Rxd6 {[%emt 0:14:34]} Ke7 {[%emt 0:00:06]} 18. e5 {[%emt 0:04:26]} Rxf4 {[%emt 0:01:59]} 19. Qd2 {[%emt 0:21:38]} Nxe5 {[%emt 0:23:35]} 20. Rxe6+ {[%emt 0:01:16]} fxe6 {[%emt 0:00:05]} 21. Qxf4 {[%emt 0:00:12]} Bb7 {[%emt 0:00:13]} 22. Ne4 {[%emt 0:03:34]} Qd4 {[%emt 0:04:36]} 23. Bg2 {[%emt 0:01:46]} Rc8 {[%emt 0:00:26]} 24. Rd1 {[%emt 0:03:07]} Nd3+ {[%emt 0:04:51]} 25. Rxd3 {[%emt 0:00:05]} Qxd3 {[%emt 0:00:05]} 26. Nc3 {[%emt 0:00:08]} Qc4 {[%emt 0:13:15]} 27. Qxc4 {[%emt 0:00:50]} Rxc4 {[%emt 0:00:05]} 28. Bxb7 {[%emt 0:00:03]} Rh4 {[%emt 0:01:07]} 29. Bxa6 {[%emt 0:00:53]} Rxh2 {[%emt 0:00:32]} 30. b4 {[%emt 0:06:20]} Rh4 {[%emt 0:06:34]} 31. b5 {[%emt 0:00:18]} Kd6 {[%emt 0:00:26]} 32. b6 {[%emt 0:04:31]} Kc6 {[%emt 0:01:42]} 33. Na4 {[%emt 0:00:01]} h6 {[%emt 0:03:30]} 34. g6 {[%emt 0:00:34]} Rf4 {[%emt 0:03:14]} 35. c4 {[%emt 0:01:10]} Rf5 {[%emt 0:05:51]} 36. Bb5+ {[%emt 0:00:31]} Kb7 {[%emt 0:00:39]} 37. c5 {[%emt 0:00:01]} Kb8 {[%emt 0:00:12]} 38. Bd7 {[%emt 0:00:07]} 1-0

[Event "EYCC Open-U14 2019"]
[Site "Bratislava"]
[Date "2019.08.04"]
[Round "3.3"]
[White "Gnojek, Petr"]
[Black "Tsvetkov, Andrey"]
[Result "0-1"]
[ECO "D43"]
[WhiteElo "2246"]
[BlackElo "2324"]
[Annotator "NA"]
[PlyCount "94"]
[EventDate "2019.08.02"]
[EventType "swiss"]
[EventCountry "SVK"]
[SourceTitle "playchess.com"]
[Source "ChessBase"]
[SourceQuality "1"]
[TimeControl "40/5400+30:1800+30"]

1. d4 {[%emt 0:00:00]} d5 {[%emt 0:00:00]} 2. c4 {[%emt 0:00:00]} e6 {[%emt 0:00:00]} 3. Nf3 {[%emt 0:00:00]} Nf6 {[%emt 0:00:00]} 4. Nc3 {[%emt 0:00:00]} c6 {[%emt 0:00:00]} 5. Bg5 {[%emt 0:00:00]} h6 {[%emt 0:00:00]} 6. Bh4 {[%emt 0:00:00]} dxc4 {[%emt 0:00:00]} 7. e4 {[%emt 0:00:02]} g5 {[%emt 0:00:00]} 8. Bg3 {[%emt 0:00:04]} b5 {[%emt 0:00:00]} 9. Be2 {[%emt 0:00:06]} Nbd7 {[%emt 0:00:43]} 10. d5 {[%emt 0:01:06]} Bb7 {[%emt 0:44:59]} 11. dxe6 {[%emt 0:11:49]} fxe6 {[%emt 0:00:20]} 12. Nd4 {[%emt 0:00:07]} Nc5 {[%emt 0:02:14]} 13. e5 {[%emt 0:07:19]} Nd5 {[%emt 0:02:05]} 14. Bh5+ {[%emt 0:00:28]} Ke7 {[%emt 0:01:42]} 15. O-O {[%emt 0:01:23]} Nf4 {[%emt 0:14:26]} 16. Bxf4 {[%emt 0:03:11]} gxf4 {[%emt 0:00:10]} 17. Bf3 {[%emt 0:00:58]} Qd7 {[%emt 0:02:03]} 18. Ne4 {[%emt 0:09:04]} Nxe4 {[%emt 0:03:44]} 19. Bxe4 {[%emt 0:00:06]} Bg7 {[%emt 0:01:51]} 20. Nxb5 {[%emt 0:07:04]} Qxd1 {[%emt 0:02:25]} 21. Raxd1 {[%emt 0:00:50]} Bxe5 {[%emt 0:00:04]} 22. Nc3 {[%emt 0:03:51]} Rhd8 {[%emt 0:02:50]} 23. Rxd8 {[%emt 0:02:21]} Rxd8 {[%emt 0:00:22]} 24. Rd1 {[%emt 0:00:06]} Rb8 {[%emt 0:02:39]} 25. Rc1 {[%emt 0:13:50]} c5 {[%emt 0:01:26]} 26. Bxb7 {[%emt 0:02:00]} Rxb7 {[%emt 0:00:03]} 27. Nd1 {[%emt 0:00:11]} Bxb2 {[%emt 0:00:48]} 28. Rxc4 {[%emt 0:00:05]} Bd4 {[%emt 0:02:16]} 29. Rc1 {[%emt 0:03:23]} Kd6 {[%emt 0:05:13]} 30. Kf1 {[%emt 0:00:27]} Kd5 {[%emt 0:00:55]} 31. Ke2 {[%emt 0:01:09]} e5 {[%emt 0:01:14]} 32. g3 {[%emt 0:05:32]} Ke4 {[%emt 0:02:25]} 33. Rc4 {[%emt 0:05:45]} f3+ {[%emt 0:02:38]} 34. Kd2 {[%emt 0:00:06]} Kd5 {[%emt 0:00:03]} 35. Rc2 {[%emt 0:00:44]} e4 {[%emt 0:00:24]} 36. Rc1 {[%emt 0:03:38]} c4 {[%emt 0:01:07]} 37. Nc3+ {[%emt 0:01:57]} Ke5 {[%emt 0:00:39]} 38. Nd1 {[%emt 0:00:13]} c3+ {[%emt 0:00:33]} 39. Ke1 {[%emt 0:01:03]} Rb5 {[%emt 0:02:31]} 40. h3 {[%emt 0:00:00]} h5 {[%emt 0:00:00]} 41. a4 {[%emt 0:02:46]} Rb3 {[%emt 0:02:53]} 42. a5 {[%emt 0:00:47]} a6 {[%emt 0:01:35]} 43. Ne3 {[%emt 0:00:59]} Bxe3 {[%emt 0:01:04]} 44. fxe3 {[%emt 0:00:06]} Kd5 {[%emt 0:00:08]} 45. Rd1+ {[%emt 0:00:33]} Kc5 {[%emt 0:00:16]} 46. g4 {[%emt 0:00:24]} hxg4 {[%emt 0:00:17]} 47. hxg4 {[%emt 0:00:06]} c2 {[%emt 0:00:02]} 0-1

[Event "EYCC Open-U14 2019"]
[Site "Bratislava"]
[Date "2019.08.04"]
[Round "3.4"]
[White "Morgunov, Marc"]
[Black "Pozzari, Simone"]
[Result "1/2-1/2"]
[ECO "B32"]
[WhiteElo "2314"]
[BlackElo "2179"]
[Annotator "NA"]
[PlyCount "71"]
[EventDate "2019.08.02"]
[EventType "swiss"]
[EventCountry "SVK"]
[SourceTitle "playchess.com"]
[Source "ChessBase"]
[SourceQuality "1"]
[TimeControl "40/5400+30:1800+30"]

1. e4 {[%emt 0:00:00]} c5 {[%emt 0:00:00]} 2. Nf3 {[%emt 0:00:00]} Nc6 {[%emt 0:00:00]} 3. d4 {[%emt 0:00:00]} cxd4 {[%emt 0:00:00]} 4. Nxd4 {[%emt 0:00:00]} e5 {[%emt 0:00:00]} 5. Nb5 {[%emt 0:00:09]} d6 {[%emt 0:00:03]} 6. N1c3 {[%emt 0:00:55]} a6 {[%emt 0:00:12]} 7. Na3 {[%emt 0:00:05]} b5 {[%emt 0:00:06]} 8. Nd5 {[%emt 0:00:14]} Nce7 {[%emt 0:00:09]} 9. Bg5 {[%emt 0:10:49]} h6 {[%emt 0:01:31]} 10. Bxe7 {[%emt 0:01:23]} Nxe7 {[%emt 0:01:02]} 11. c4 {[%emt 0:13:09]} Nxd5 {[%emt 0:03:22]} 12. Qxd5 {[%emt 0:02:40]} Be6 {[%emt 0:03:53]} 13. Qd2 {[%emt 0:01:33]} Qh4 {[%emt 0:40:31]} 14. Qe3 {[%emt 0:10:38]} bxc4 {[%emt 0:04:15]} 15. g3 {[%emt 0:17:12]} Qg5 {[%emt 0:07:35]} 16. Bxc4 {[%emt 0:04:44]} Qxe3+ 17. fxe3 {[%emt 0:00:06]} Kd7 {[%emt 0:04:08]} 18. Rf1 {[%emt 0:06:29]} Be7 {[%emt 0:02:16]} 19. Bxe6+ {[%emt 0:01:00]} Kxe6 {[%emt 0:03:39]} 20. Rd1 {[%emt 0:01:02]} Rhc8 {[%emt 0:04:41]} 21. b3 {[%emt 0:03:22]} Rc5 {[%emt 0:04:44]} 22. Nc4 {[%emt 0:00:32]} Rb8 {[%emt 0:00:08]} 23. Rf2 {[%emt 0:01:41]} Rb4 {[%emt 0:12:55]} 24. Rfd2 {[%emt 0:05:09]} Rcxc4 {[%emt 0:00:02]} 25. bxc4 {[%emt 0:00:06]} Rxc4 {[%emt 0:00:04]} 26. Rd3 {[%emt 0:00:06]} Rxe4 {[%emt 0:00:32]} 27. Ra3 {[%emt 0:00:15]} a5 {[%emt 0:00:52]} 28. Ke2 {[%emt 0:04:12]} a4 {[%emt 0:00:05]} 29. Rb1 {[%emt 0:03:22]} d5 {[%emt 0:03:20]} 30. Rb6+ {[%emt 0:01:31]} Kf5 {[%emt 0:00:01]} 31. Rd3 {[%emt 0:00:50]} d4 {[%emt 0:01:06]} 32. Rb7 {[%emt 0:03:40]} Ke6 {[%emt 0:00:37]} 33. Kf3 {[%emt 0:02:01]} Rxe3+ {[%emt 0:00:29]} 34. Rxe3 {[%emt 0:00:09]} dxe3 {[%emt 0:00:02]} 35. Kxe3 {[%emt 0:00:51]} a3 {[%emt 0:00:07]} 36. Ke4 1/2-1/2

[Event "EYCC Open-U14 2019"]
[Site "Bratislava"]
[Date "2019.08.04"]
[Round "3.5"]
[White "Mitusov, Semen"]
[Black "Krastev, Alexander"]
[Result "1/2-1/2"]
[ECO "C11"]
[WhiteElo "2199"]
[BlackElo "2325"]
[Annotator "NA"]
[PlyCount "171"]
[EventDate "2019.08.02"]
[EventType "swiss"]
[EventCountry "SVK"]
[SourceTitle "playchess.com"]
[Source "ChessBase"]
[SourceQuality "1"]
[TimeControl "40/5400+30:1800+30"]

1. e4 {[%emt 0:00:00]} e6 {[%emt 0:00:00]} 2. Nf3 {[%emt 0:00:46]} d5 {[%emt 0:00:08]} 3. Nc3 {[%emt 0:00:04]} Nf6 {[%emt 0:00:14]} 4. e5 {[%emt 0:02:14]} Nfd7 {[%emt 0:00:06]} 5. d4 {[%emt 0:00:04]} c5 {[%emt 0:00:06]} 6. dxc5 {[%emt 0:00:13]} Nc6 {[%emt 0:00:05]} 7. Bf4 {[%emt 0:00:03]} Nxc5 {[%emt 0:00:06]} 8. a3 {[%emt 0:01:50]} Be7 {[%emt 0:02:12]} 9. Be2 {[%emt 0:06:28]} a6 {[%emt 0:02:26]} 10. O-O {[%emt 0:02:18]} O-O {[%emt 0:10:25]} 11. Re1 {[%emt 0:06:58]} f6 {[%emt 0:20:25]} 12. Bg3 {[%emt 0:08:27]} f5 {[%emt 0:02:33]} 13. h3 {[%emt 0:01:29]} Qb6 {[%emt 0:04:39]} 14. Qc1 {[%emt 0:10:15]} Ne4 {[%emt 0:01:29]} 15. Nxe4 {[%emt 0:06:12]} fxe4 {[%emt 0:00:33]} 16. Nh2 {[%emt 0:01:19]} Bd7 {[%emt 0:10:01]} 17. Ng4 {[%emt 0:03:48]} Nd4 {[%emt 0:03:58]} 18. Bd1 {[%emt 0:06:10]} Rf7 {[%emt 0:16:54]} 19. Ne3 {[%emt 0:03:45]} Raf8 20. Bg4 {[%emt 0:05:27]} Qc6 {[%emt 0:04:08]} 21. Qd1 {[%emt 0:02:05]} Bc5 {[%emt 0:02:10]} 22. c3 {[%emt 0:02:22]} Nf5 {[%emt 0:06:48]} 23. Bxf5 {[%emt 0:04:11]} exf5 {[%emt 0:00:42]} 24. Bf4 {[%emt 0:02:15]} Be6 25. Nc2 {[%emt 0:02:16]} Qb6 {[%emt 0:03:02]} 26. Qd2 {[%emt 0:00:35]} h6 {[%emt 0:02:21]} 27. h4 {[%emt 0:00:18]} Qd8 {[%emt 0:00:17]} 28. g3 {[%emt 0:01:44]} Rd7 {[%emt 0:03:09]} 29. Nd4 {[%emt 0:05:29]} Qe8 {[%emt 0:00:38]} 30. Rac1 {[%emt 0:02:45]} Ba7 {[%emt 0:01:05]} 31. Rc2 {[%emt 0:00:47]} Qe7 {[%emt 0:00:58]} 32. Kg2 Rc8 {[%emt 0:00:20]} 33. Kg1 {[%emt 0:02:55]} Rc4 {[%emt 0:00:24]} 34. Rec1 {[%emt 0:00:42]} Rd8 {[%emt 0:01:25]} 35. Kf1 {[%emt 0:03:35]} Rdc8 {[%emt 0:00:47]} 36. Kg1 {[%emt 0:00:29]} Qd7 {[%emt 0:01:00]} 37. Kg2 {[%emt 0:01:57]} Kh7 {[%emt 0:02:15]} 38. Kg1 {[%emt 0:00:24]} R4c7 {[%emt 0:00:16]} 39. Rd1 {[%emt 0:00:39]} Bxd4 {[%emt 0:00:40]} 40. Qxd4 Rc4 {[%emt 0:00:00]} 41. Qb6 {[%emt 0:06:58]} R8c6 {[%emt 0:03:54]} 42. Qa7 {[%emt 0:03:34]} d4 {[%emt 0:00:31]} 43. b3 {[%emt 0:02:39]} Rxc3 {[%emt 0:00:15]} 44. Rxc3 {[%emt 0:01:30]} Rxc3 {[%emt 0:00:07]} 45. Rxd4 {[%emt 0:01:51]} Qf7 {[%emt 0:00:34]} 46. Rd8 {[%emt 0:02:04]} Rxb3 {[%emt 0:01:01]} 47. Qb8 {[%emt 0:01:10]} Kg6 {[%emt 0:10:47]} 48. Rf8 {[%emt 0:07:56]} Qd7 {[%emt 0:00:58]} 49. Rd8 {[%emt 0:01:45]} Rb1+ {[%emt 0:01:01]} 50. Kh2 {[%emt 0:00:27]} Qb5 {[%emt 0:04:59]} 51. Qd6 {[%emt 0:04:05]} Qb6 {[%emt 0:03:12]} 52. Qxb6 {[%emt 0:02:10]} Rxb6 {[%emt 0:00:04]} 53. Rd6 {[%emt 0:00:10]} Rc6 {[%emt 0:01:36]} 54. Kg2 {[%emt 0:01:42]} Kf7 {[%emt 0:00:30]} 55. Rxc6 {[%emt 0:00:05]} bxc6 {[%emt 0:00:04]} 56. f3 {[%emt 0:01:26]} Bd7 {[%emt 0:03:09]} 57. fxe4 {[%emt 0:02:35]} fxe4 {[%emt 0:00:04]} 58. Bc1 {[%emt 0:01:01]} Ke6 {[%emt 0:01:07]} 59. Bb2 {[%emt 0:00:01]} Kd5 {[%emt 0:00:30]} 60. Kf2 {[%emt 0:00:46]} Kc4 {[%emt 0:02:50]} 61. Ke3 {[%emt 0:00:51]} Kb3 {[%emt 0:00:07]} 62. e6 {[%emt 0:01:50]} Bxe6 {[%emt 0:00:04]} 63. Bxg7 {[%emt 0:00:01]} h5 {[%emt 0:00:24]} 64. Bf8 {[%emt 0:00:33]} Bd5 {[%emt 0:00:27]} 65. Kd4 {[%emt 0:00:29]} Kc2 {[%emt 0:00:30]} 66. Bb4 {[%emt 0:00:49]} Kb3 {[%emt 0:01:27]} 67. Bf8 {[%emt 0:00:05]} a5 {[%emt 0:00:04]} 68. Be7 {[%emt 0:00:11]} Kc2 {[%emt 0:00:31]} 69. Ke3 {[%emt 0:01:44]} Kc3 {[%emt 0:00:13]} 70. Bf8 {[%emt 0:00:32]} Kc4 {[%emt 0:00:12]} 71. Be7 {[%emt 0:00:07]} c5 {[%emt 0:00:55]} 72. Bf8 {[%emt 0:00:14]} Bc6 {[%emt 0:00:11]} 73. Be7 {[%emt 0:00:05]} Kd5 {[%emt 0:00:33]} 74. Bd8 {[%emt 0:00:14]} Kc4 {[%emt 0:00:54]} 75. Be7 {[%emt 0:00:07]} Kb5 {[%emt 0:00:49]} 76. Bf8 {[%emt 0:00:12]} Bb7 {[%emt 0:01:42]} 77. Be7 {[%emt 0:00:14]} Bd5 {[%emt 0:00:07]} 78. Bf8 {[%emt 0:00:38]} c4 {[%emt 0:00:58]} 79. Kd4 {[%emt 0:00:24]} Ka4 {[%emt 0:00:26]} 80. Kxd5 {[%emt 0:01:31]} e3 {[%emt 0:00:30]} 81. Bh6 {[%emt 0:00:45]} e2 {[%emt 0:00:04]} 82. Bd2 {[%emt 0:00:03]} Kb3 {[%emt 0:00:06]} 83. Kd4 {[%emt 0:00:17]} a4 {[%emt 0:00:31]} 84. Bc3 {[%emt 0:01:13]} Kxa3 {[%emt 0:00:17]} 85. Kxc4 {[%emt 0:00:03]} Ka2 {[%emt 0:00:05]} 86. Bb4 {[%emt 0:01:17]} 1/2-1/2

[Event "EYCC Open-U14 2019"]
[Site "Bratislava"]
[Date "2019.08.04"]
[Round "3.6"]
[White "Kusa, Jakub"]
[Black "Stukan, Martin"]
[Result "1/2-1/2"]
[ECO "B51"]
[WhiteElo "2199"]
[BlackElo "2303"]
[Annotator "NA"]
[PlyCount "90"]
[EventDate "2019.08.02"]
[EventType "swiss"]
[EventCountry "SVK"]
[SourceTitle "playchess.com"]
[Source "ChessBase"]
[SourceQuality "1"]
[TimeControl "40/5400+30:1800+30"]

1. e4 {[%emt 0:00:00]} c5 {[%emt 0:00:00]} 2. Nf3 {[%emt 0:00:00]} d6 {[%emt 0:00:00]} 3. Bb5+ {[%emt 0:00:00]} Nd7 {[%emt 0:00:00]} 4. O-O {[%emt 0:00:26]} a6 {[%emt 0:00:05]} 5. Bd3 {[%emt 0:00:20]} Ngf6 {[%emt 0:01:31]} 6. Re1 {[%emt 0:00:55]} e5 {[%emt 0:07:29]} 7. c3 {[%emt 0:00:50]} g6 {[%emt 0:03:33]} 8. Bf1 {[%emt 0:02:09]} Bg7 {[%emt 0:02:03]} 9. d4 {[%emt 0:01:59]} O-O {[%emt 0:07:23]} 10. a4 {[%emt 0:01:59]} cxd4 {[%emt 0:21:54]} 11. cxd4 {[%emt 0:01:32]} exd4 {[%emt 0:00:02]} 12. Nxd4 {[%emt 0:01:28]} Nc5 {[%emt 0:01:12]} 13. Nc3 {[%emt 0:03:25]} d5 {[%emt 0:03:27]} 14. e5 {[%emt 0:12:40]} Nfe4 {[%emt 0:02:55]} 15. f3 {[%emt 0:03:52]} Nxc3 {[%emt 0:06:13]} 16. bxc3 {[%emt 0:00:12]} Bd7 {[%emt 0:02:59]} 17. a5 {[%emt 0:05:47]} Re8 {[%emt 0:01:31]} 18. f4 {[%emt 0:02:20]} Rc8 {[%emt 0:06:52]} 19. c4 {[%emt 0:05:56]} dxc4 {[%emt 0:04:07]} 20. Bxc4 {[%emt 0:01:34]} Bg4 {[%emt 0:00:45]} 21. Qd2 {[%emt 0:02:45]} Ne6 {[%emt 0:05:45]} 22. Nxe6 {[%emt 0:01:57]} Bxe6 {[%emt 0:03:41]} 23. Bxe6 {[%emt 0:01:23]} Rxe6 {[%emt 0:00:03]} 24. Qxd8+ {[%emt 0:01:32]} Rxd8 {[%emt 0:00:02]} 25. Ba3 {[%emt 0:02:36]} f6 {[%emt 0:01:46]} 26. Red1 {[%emt 0:04:54]} Rde8 {[%emt 0:03:29]} 27. exf6 {[%emt 0:04:32]} Rxf6 {[%emt 0:00:05]} 28. g3 {[%emt 0:05:28]} Rf5 {[%emt 0:00:39]} 29. Rab1 {[%emt 0:01:56]} Rxa5 {[%emt 0:00:06]} 30. Bb2 {[%emt 0:00:57]} Bxb2 {[%emt 0:05:06]} 31. Rxb2 {[%emt 0:00:08]} Re7 {[%emt 0:00:01]} 32. Rb6 {[%emt 0:01:54]} Ra2 {[%emt 0:02:19]} 33. Rdb1 {[%emt 0:05:46]} Ree2 {[%emt 0:00:55]} 34. Rxb7 {[%emt 0:00:56]} Rg2+ {[%emt 0:00:12]} 35. Kh1 {[%emt 0:01:33]} Rxh2+ {[%emt 0:00:08]} 36. Kg1 {[%emt 0:00:05]} Rhg2+ {[%emt 0:03:20]} 37. Kh1 {[%emt 0:00:12]} Rh2+ {[%emt 0:00:02]} 38. Kg1 {[%emt 0:00:08]} Rag2+ {[%emt 0:00:16]} 39. Kf1 {[%emt 0:00:06]} Rxg3 {[%emt 0:00:02]} 40. R1b4 {[%emt 0:00:00]} Ra3 {[%emt 0:00:00]} 41. Kg1 {[%emt 0:06:44]} Rc2 {[%emt 0:02:13]} 42. Rb1 {[%emt 0:00:23]} Ra4 {[%emt 0:00:47]} 43. Ra7 {[%emt 0:01:02]} Rxf4 {[%emt 0:01:55]} 44. Rb8+ {[%emt 0:02:39]} Rf8 {[%emt 0:00:04]} 45. Rbb7 {[%emt 0:00:08]} Rf5 {[%emt 0:05:43]} 1/2-1/2

[Event "EYCC Open-U14 2019"]
[Site "Bratislava"]
[Date "2019.08.04"]
[Round "3.7"]
[White "Sokolovsky, Yahli"]
[Black "Stalmach, Richard"]
[Result "1-0"]
[ECO "B06"]
[WhiteElo "2093"]
[BlackElo "2381"]
[Annotator "NA"]
[PlyCount "65"]
[EventDate "2019.08.02"]
[EventType "swiss"]
[EventCountry "SVK"]
[SourceTitle "playchess.com"]
[Source "ChessBase"]
[SourceQuality "1"]
[TimeControl "40/5400+30:1800+30"]

1. e4 {[%emt 0:00:00]} g6 {[%emt 0:00:00]} 2. d4 {[%emt 0:00:00]} d6 {[%emt 0:00:00]} 3. Nc3 {[%emt 0:00:40]} Bg7 {[%emt 0:00:09]} 4. Nf3 {[%emt 0:01:28]} a6 {[%emt 0:00:30]} 5. Be3 {[%emt 0:00:25]} b5 {[%emt 0:00:27]} 6. Bd3 {[%emt 0:00:38]} Nd7 {[%emt 0:00:59]} 7. a4 {[%emt 0:02:11]} b4 {[%emt 0:02:42]} 8. Nb1 {[%emt 0:01:31]} Bb7 {[%emt 0:14:01]} 9. c3 {[%emt 0:06:10]} Ngf6 {[%emt 0:03:23]} 10. Nbd2 {[%emt 0:02:27]} c5 {[%emt 0:06:24]} 11. cxb4 {[%emt 0:08:37]} cxd4 {[%emt 0:05:10]} 12. Bxd4 {[%emt 0:03:59]} e5 {[%emt 0:01:28]} 13. Bc3 {[%emt 0:10:07]} d5 {[%emt 0:15:14]} 14. exd5 {[%emt 0:10:06]} Nxd5 {[%emt 0:00:36]} 15. O-O {[%emt 0:06:39]} O-O {[%emt 0:00:18]} 16. Re1 {[%emt 0:06:07]} Rc8 {[%emt 0:20:42]} 17. Be4 {[%emt 0:12:16]} Re8 {[%emt 0:05:21]} 18. Qb3 {[%emt 0:03:57]} N7f6 {[%emt 0:02:16]} 19. Rad1 {[%emt 0:04:55]} Qc7 {[%emt 0:06:04]} 20. Rc1 {[%emt 0:04:36]} Qb6 {[%emt 0:01:00]} 21. Nc4 {[%emt 0:05:33]} Qe6 {[%emt 0:02:04]} 22. Ncd2 {[%emt 0:02:54]} Bh6 {[%emt 0:04:54]} 23. Rcd1 {[%emt 0:00:56]} Bg7 {[%emt 0:04:00]} 24. Bxe5 {[%emt 0:02:42]} Nxe4 {[%emt 0:00:14]} 25. Nxe4 {[%emt 0:00:31]} Bxe5 26. Nc5 {[%emt 0:00:45]} Qb6 {[%emt 0:01:21]} 27. Rxe5 {[%emt 0:02:14]} Nxb4 {[%emt 0:03:00]} 28. Rxe8+ {[%emt 0:00:52]} Rxe8 {[%emt 0:00:03]} 29. Nd7 {[%emt 0:00:19]} Bd5 {[%emt 0:01:37]} 30. Rxd5 {[%emt 0:00:47]} Qe6 {[%emt 0:00:25]} 31. Qxb4 {[%emt 0:00:28]} Rd8 {[%emt 0:00:03]} 32. Qd2 {[%emt 0:00:24]} Rc8 {[%emt 0:00:07]} 33. h3 {[%emt 0:00:23]} 1-0

[Event "EYCC Open-U14 2019"]
[Site "Bratislava"]
[Date "2019.08.04"]
[Round "3.8"]
[White "Vojta, Jakub"]
[Black "Sosovicka, Jakub"]
[Result "1-0"]
[ECO "B52"]
[WhiteElo "2238"]
[BlackElo "2097"]
[Annotator "NA"]
[PlyCount "75"]
[EventDate "2019.08.02"]
[EventType "swiss"]
[EventCountry "SVK"]
[SourceTitle "playchess.com"]
[Source "ChessBase"]
[SourceQuality "1"]
[TimeControl "40/5400+30:1800+30"]

1. e4 {[%emt 0:00:00]} c5 {[%emt 0:00:00]} 2. Nf3 {[%emt 0:00:00]} d6 {[%emt 0:00:00]} 3. Bb5+ {[%emt 0:00:00]} Bd7 {[%emt 0:00:27]} 4. Bxd7+ {[%emt 0:00:00]} Qxd7 {[%emt 0:00:11]} 5. c4 {[%emt 0:00:00]} Nf6 {[%emt 0:06:43]} 6. Nc3 {[%emt 0:00:14]} g6 {[%emt 0:02:33]} 7. d4 {[%emt 0:04:33]} cxd4 {[%emt 0:00:27]} 8. Nxd4 {[%emt 0:00:08]} Bg7 {[%emt 0:01:55]} 9. O-O {[%emt 0:02:51]} O-O {[%emt 0:01:39]} 10. b3 {[%emt 0:01:03]} Nc6 {[%emt 0:04:05]} 11. Bb2 {[%emt 0:01:03]} a6 {[%emt 0:05:39]} 12. Rc1 {[%emt 0:06:25]} Rac8 {[%emt 0:04:24]} 13. Re1 {[%emt 0:01:23]} Rfd8 {[%emt 0:06:55]} 14. Na4 {[%emt 0:03:48]} Qc7 {[%emt 0:07:04]} 15. f4 {[%emt 0:08:36]} Nd7 {[%emt 0:05:41]} 16. Nxc6 {[%emt 0:03:24]} bxc6 {[%emt 0:04:54]} 17. Bxg7 {[%emt 0:01:36]} Kxg7 {[%emt 0:00:01]} 18. b4 {[%emt 0:03:06]} Qa7+ {[%emt 0:02:18]} 19. Kh1 {[%emt 0:02:03]} Qf2 {[%emt 0:17:24]} 20. g3 {[%emt 0:10:44]} Nf6 {[%emt 0:14:34]} 21. Rc2 {[%emt 0:00:47]} Qa7 {[%emt 0:01:05]} 22. Rd2 {[%emt 0:00:37]} Qb7 {[%emt 0:04:10]} 23. e5 {[%emt 0:03:16]} Ne8 {[%emt 0:03:25]} 24. c5 {[%emt 0:09:00]} Qxb4 {[%emt 0:01:45]} 25. cxd6 {[%emt 0:04:35]} exd6 {[%emt 0:00:17]} 26. Rd4 {[%emt 0:07:14]} Qa5 {[%emt 0:00:10]} 27. e6 {[%emt 0:00:44]} fxe6 {[%emt 0:02:35]} 28. Rxe6 {[%emt 0:00:17]} Rc7 {[%emt 0:02:07]} 29. Rde4 {[%emt 0:02:14]} Nf6 {[%emt 0:00:52]} 30. Qd4 {[%emt 0:01:45]} Rf7 {[%emt 0:01:06]} 31. Rxf6 {[%emt 0:01:15]} Rxf6 {[%emt 0:00:08]} 32. Re7+ {[%emt 0:00:04]} Kh6 {[%emt 0:00:24]} 33. Qxf6 {[%emt 0:00:09]} Qd5+ {[%emt 0:00:09]} 34. Kg1 {[%emt 0:00:05]} Qd1+ {[%emt 0:00:25]} 35. Kf2 {[%emt 0:00:36]} Qc2+ {[%emt 0:00:27]} 36. Re2 {[%emt 0:00:23]} Qxa4 {[%emt 0:00:10]} 37. Qh4+ {[%emt 0:00:12]} Kg7 {[%emt 0:00:09]} 38. Re7+ {[%emt 0:00:04]} 1-0

[Event "EYCC Open-U14 2019"]
[Site "Bratislava"]
[Date "2019.08.04"]
[Round "3.9"]
[White "Droin, Augustin"]
[Black "Fernandez Lopez, Ruben"]
[Result "0-1"]
[ECO "B92"]
[WhiteElo "2172"]
[BlackElo "2207"]
[Annotator "NA"]
[PlyCount "70"]
[EventDate "2019.08.02"]
[EventType "swiss"]
[EventCountry "SVK"]
[SourceTitle "playchess.com"]
[Source "ChessBase"]
[SourceQuality "1"]
[TimeControl "40/5400+30:1800+30"]

1. e4 {[%emt 0:00:00]} c5 {[%emt 0:00:00]} 2. Nf3 {[%emt 0:00:00]} d6 {[%emt 0:00:00]} 3. d4 {[%emt 0:00:00]} cxd4 {[%emt 0:00:00]} 4. Nxd4 {[%emt 0:00:00]} Nf6 {[%emt 0:00:00]} 5. Nc3 {[%emt 0:00:00]} a6 {[%emt 0:00:02]} 6. Be2 {[%emt 0:00:31]} e5 {[%emt 0:00:23]} 7. Nb3 {[%emt 0:00:10]} Be7 {[%emt 0:00:28]} 8. Be3 {[%emt 0:01:16]} Be6 {[%emt 0:00:23]} 9. h4 {[%emt 0:03:37]} d5 {[%emt 0:11:21]} 10. exd5 {[%emt 0:00:22]} Nxd5 {[%emt 0:01:43]} 11. Nxd5 {[%emt 0:00:19]} Bxd5 {[%emt 0:02:03]} 12. c4 {[%emt 0:01:02]} Bc6 {[%emt 0:02:38]} 13. Qxd8+ {[%emt 0:00:14]} Kxd8 {[%emt 0:00:22]} 14. f3 {[%emt 0:05:06]} Kc7 {[%emt 0:02:46]} 15. Kf2 {[%emt 0:01:02]} Nd7 {[%emt 0:00:45]} 16. Rac1 {[%emt 0:07:20]} a5 {[%emt 0:14:56]} 17. c5 {[%emt 0:16:22]} a4 {[%emt 0:01:23]} 18. Nd2 {[%emt 0:00:10]} Ra5 {[%emt 0:00:50]} 19. Ne4 {[%emt 0:00:59]} Bxe4 {[%emt 0:14:25]} 20. fxe4 {[%emt 0:00:11]} Nxc5 {[%emt 0:01:03]} 21. b4 {[%emt 0:01:15]} axb3 {[%emt 0:00:01]} 22. axb3 {[%emt 0:00:08]} Kb8 {[%emt 0:00:16]} 23. b4 {[%emt 0:00:39]} Nxe4+ {[%emt 0:02:49]} 24. Kf3 {[%emt 0:00:20]} Ra2 {[%emt 0:00:17]} 25. Rhd1 {[%emt 0:07:01]} Nf6 {[%emt 0:01:31]} 26. Bb6 {[%emt 0:01:48]} Ra3+ {[%emt 0:04:38]} 27. Kf2 {[%emt 0:00:59]} Rc8 {[%emt 0:12:57]} 28. Rxc8+ {[%emt 0:01:01]} Kxc8 {[%emt 0:00:01]} 29. Rc1+ {[%emt 0:00:10]} Kd7 30. Rc4 {[%emt 0:10:04]} Rc3 {[%emt 0:03:32]} 31. Rxc3 {[%emt 0:03:16]} Ne4+ {[%emt 0:00:26]} 32. Kf3 {[%emt 0:00:07]} Nxc3 {[%emt 0:00:06]} 33. Bc4 {[%emt 0:00:29]} f5 {[%emt 0:00:42]} 34. Bg8 {[%emt 0:00:40]} Bxh4 {[%emt 0:00:35]} 35. Bxh7 {[%emt 0:00:20]} e4+ {[%emt 0:00:11]} 0-1